bitfinex/quotes_SOLUSD_20250819
["timestamp","ask_amount","ask_price","bid_price","bid_amount"]
[1755647430359,57.21775558,176.99,176.98,0.06]
[1755647430561,67.61006131,176.99,176.98,0.06]
[1755647431162,68.29006131,176.99,176.98,0.06]
[1755647431464,76.98558964,176.99,176.98,0.06]
[1755647432170,26.0,176.92,176.91,0.72]
[1755647432475,79.87230573,176.92,176.91,0.72]
[1755647432860,93.61006131,176.92,176.91,0.72]
[1755647433372,83.21775558,176.92,176.91,0.72]
[1755647433673,69.48,176.92,176.91,11.11230573]
[1755647434375,69.48,176.92,176.91,10.39230573]
[1755647434573,69.48,176.92,176.91,11.06230573]
[1755647435273,69.48,176.92,176.91,0.67]
[1755647435677,69.46,176.92,176.91,11.06230573]
[1755647435974,69.46,176.92,176.91,0.67]
[1755647436782,26.0,176.92,176.91,0.67]
[1755647436988,69.48,176.92,176.91,0.67]
[1755647437161,69.48,176.92,176.89,0.67]
[1755647440287,43.46,176.9,176.89,0.67]
[1755647441699,43.44,176.9,176.89,0.67]
[1755647443660,26.0,176.87,176.86,0.67]
[1755647443860,69.44,176.87,176.75,15.62655863]
[1755647444069,69.44,176.87,176.86,10.39230573]
[1755647444362,69.44,176.87,176.86,11.06230573]
[1755647445064,69.44,176.87,176.86,0.67]
[1755647445762,69.44,176.87,176.86,11.06230573]
[1755647446887,43.44,176.87,176.86,0.67]
[1755647447064,43.44,176.87,176.86,11.06230573]
[1755647448884,43.44,176.87,176.86,0.67]
[1755647449082,43.44,176.87,176.86,11.06230573]
[1755647449391,43.44,176.87,176.86,0.67]
[1755647453778,43.44,176.87,176.85,0.06]
[1755647454589,43.44,176.87,176.85,0.73]
[1755647455301,43.44,176.87,176.85,0.06]
[1755647455905,43.44,176.87,176.85,0.73]
[1755647456197,0.1,176.86,176.85,0.06]
[1755647456399,43.44,176.87,176.85,0.06]
[1755647456703,43.44,176.87,176.85,0.73]
[1755647457094,43.44,176.87,176.85,0.06]
[1755647457291,43.44,176.87,176.86,0.67]
[1755647457975,43.36,176.87,176.85,0.06]
[1755647459001,43.36,176.87,176.85,0.73]
[1755647459203,43.36,176.87,176.85,0.06]
[1755647459886,43.36,176.87,176.86,0.67]
[1755647460592,53.75230573,176.87,176.85,0.06]
[1755647461179,53.75230573,176.87,176.86,0.67]
[1755647461376,43.36,176.87,176.86,0.67]
[1755647461903,43.36,176.87,176.85,0.73]
[1755647462487,53.75230573,176.87,176.85,0.06]
[1755647462808,43.36,176.87,176.85,0.06]
[1755647463106,10.39230573,176.86,176.85,0.06]
[1755647463303,53.75230573,176.87,176.85,0.06]
[1755647463903,10.39230573,176.86,176.85,0.06]
[1755647464116,44.05,176.87,176.85,0.06]
[1755647464402,10.39230573,176.86,176.85,0.06]
[1755647464604,11.08230573,176.86,176.85,0.06]
[1755647465003,43.36,176.87,176.85,0.06]
[1755647465206,11.08230573,176.86,176.85,0.06]
[1755647465394,28.09344773,176.86,176.85,0.06]
[1755647466193,41.83120331,176.86,176.85,0.06]
[1755647466893,85.15120331,176.86,176.85,0.06]
[1755647467598,44.85790533,176.86,176.85,0.06]
[1755647467816,44.85790533,176.86,176.85,0.71]
[1755647467817,43.3,176.86,176.85,0.71]
[1755647468601,43.3,176.86,176.85,0.06]
[1755647469296,43.3,176.86,176.85,0.71]
[1755647469625,53.69230573,176.86,176.85,0.06]
[1755647471622,10.39230573,176.86,176.85,0.06]
[1755647471828,53.69230573,176.86,176.85,0.06]
[1755647474728,10.39230573,176.87,176.85,0.71]
[1755647474905,43.28,176.86,176.85,0.71]
[1755647475099,43.28,176.86,176.85,0.06]
[1755647475997,43.28,176.86,176.85,0.71]
[1755647477498,43.28,176.86,176.85,0.06]
[1755647478091,53.67230573,176.86,176.85,0.06]
[1755647478815,64.06461173,176.86,176.85,0.06]
[1755647479022,53.672306,176.86,176.85,0.06]
[1755647479324,64.06461173,176.86,176.85,0.06]
[1755647480435,53.672306,176.86,176.85,0.06]
[1755647480715,53.672306,176.86,176.85,0.71]
[1755647480716,43.24,176.86,176.85,0.71]
[1755647484014,43.24,176.86,176.85,0.06]
[1755647484411,54.32230573,176.86,176.85,0.06]
[1755647485219,53.63230573,176.86,176.85,0.06]
[1755647485609,43.24,176.86,176.85,0.06]
[1755647485795,53.63230573,176.86,176.85,0.06]
[1755647487524,55.90032973,176.86,176.85,0.06]
[1755647487721,45.508024,176.86,176.85,0.06]
[1755647488826,2.268024,176.86,176.85,0.06]
[1755647489011,43.18,176.86,176.85,0.06]
[1755647489527,54.26230573,176.86,176.85,0.06]
[1755647490012,45.448024,176.86,176.85,0.06]
[1755647490205,55.84032973,176.86,176.85,0.06]
[1755647490815,45.448024,176.86,176.85,0.06]
[1755647491018,45.25731385,176.96,176.85,11.10230573]
[1755647491217,3.71666617,176.95,176.9,10.39230573]
[1755647491428,3.71666617,176.95,176.85,0.06]
[1755647491429,10.392305,176.94,176.89,10.39230573]
[1755647491614,43.16,176.93,176.88,10.39230573]
[1755647491802,43.16,176.93,176.9,0.65]
[1755647492211,43.16,176.93,176.91,0.65]
[1755647492529,43.16,176.93,176.89,10.39230573]
[1755647492714,43.16,176.93,176.9,0.65]
[1755647492917,43.16,176.93,176.91,0.65]
[1755647493216,43.16,176.92,176.91,0.65]
[1755647493634,23.98789974,176.95,176.91,0.65]
[1755647493805,10.39230573,176.95,176.92,0.65]
[1755647494009,40.8,176.96,176.93,11.04230573]
[1755647494313,43.14,176.95,176.94,0.68]
[1755647494708,54.21230573,176.95,176.91,0.68]
[1755647494904,10.39230573,176.94,176.91,0.68]
[1755647495125,43.14,176.93,176.91,0.68]
[1755647496218,10.39230573,176.92,176.9,0.06]
[1755647496401,43.12,176.91,176.9,0.06]
[1755647496935,67.93006131,176.91,176.9,0.06]
[1755647497323,24.81006131,176.91,176.9,0.06]
[1755647497521,67.93006131,176.91,176.9,0.06]
[1755647497921,67.25006131,176.91,176.9,0.06]
[1755647498141,10.39230573,176.94,176.9,0.74]
[1755647498305,51.19230573,176.96,176.9,11.13230573]
[1755647498507,43.12,176.95,176.92,10.39230573]
[1755647498727,40.8,176.96,176.93,11.07230573]
[1755647498941,40.8,176.96,176.94,0.68]
[1755647499125,43.1,176.95,176.94,0.68]
[1755647499438,43.1,176.95,176.92,11.07230573]
[1755647499618,43.1,176.95,176.93,0.68]
[1755647500930,53.49230573,176.95,176.9,0.74]
[1755647501105,10.39230573,176.94,176.9,0.06]
[1755647501416,10.39230573,176.92,176.9,0.06]
[1755647501615,43.08,176.91,176.9,0.06]
[1755647502431,43.08,176.91,176.9,0.74]
[1755647503209,66.8,176.96,176.9,11.13230573]
[1755647503434,43.08,176.95,176.92,10.39230573]
[1755647503613,43.08,176.95,176.93,0.68]
[1755647503808,43.08,176.95,176.94,0.68]
[1755647504008,43.08,176.95,176.91,10.39230573]
[1755647504348,43.08,176.95,176.92,0.68]
[1755647504642,53.47230573,176.95,176.9,0.06]
[1755647504809,10.39230573,176.94,176.9,0.74]
[1755647505011,43.06,176.93,176.9,0.74]
[1755647505230,43.06,176.93,176.9,0.06]
[1755647505410,43.06,176.93,176.91,0.68]
[1755647505612,43.06,176.93,176.92,0.68]
[1755647505936,43.06,176.93,176.92,11.07230573]
[1755647506437,43.06,176.93,176.9,0.74]
[1755647506822,43.06,176.93,176.91,0.68]
[1755647508342,10.39230573,176.92,176.9,0.06]
[1755647508523,43.04,176.91,176.9,0.06]
[1755647509527,53.43230573,176.91,176.9,0.06]
[1755647511128,54.11230573,176.91,176.9,0.06]
[1755647511320,53.43230573,176.91,176.9,0.06]
[1755647511536,43.04,176.91,176.9,0.06]
[1755647511943,53.43230573,176.91,176.9,0.06]
[1755647512564,67.85006131,176.91,176.9,0.06]
[1755647515659,67.17006131,176.91,176.9,0.06]
[1755647516258,67.85006131,176.91,176.9,0.06]
[1755647516446,93.17006131,176.91,176.9,0.06]
[1755647517134,93.85006131,176.91,176.9,0.06]
[1755647518353,67.85006131,176.91,176.9,0.06]
[1755647519657,70.11821331,176.91,176.9,0.06]
[1755647520354,53.07821331,176.91,176.9,0.06]
[1755647520556,70.05821331,176.91,176.9,0.06]
[1755647525438,69.37821331,176.91,176.9,0.06]
[1755647526959,70.04821331,176.91,176.9,0.06]
[1755647528056,73.75473547,176.91,176.9,0.06]
[1755647528438,79.40732718,176.91,176.9,0.06]
[1755647530260,13.73775558,176.89,176.88,0.06]
[1755647530435,67.05006131,176.89,176.88,0.06]
[1755647530641,67.72006131,176.89,176.88,0.06]
[1755647531056,69.98834231,176.89,176.88,0.06]
[1755647532658,200.98834231,176.89,176.88,0.06]
[1755647532877,157.39834231,176.89,176.88,0.06]
[1755647533039,200.29834231,176.89,176.88,0.73]
[1755647533448,212.56058673,176.89,176.88,0.73]
[1755647533659,184.29230573,176.89,176.88,0.73]
[1755647533860,184.4344673,176.89,176.88,0.73]
[1755647534058,184.29230573,176.89,176.88,0.73]
[1755647534242,184.4344673,176.89,176.88,0.73]
[1755647534553,23.98789974,176.94,176.88,0.73]
[1755647534753,53.27230573,176.93,176.88,0.73]
[1755647534966,10.39230573,176.92,176.88,0.73]
[1755647535151,42.88,176.91,176.88,0.73]
[1755647535865,40.78,176.95,176.9,10.39230573]
[1755647536067,42.88,176.94,176.91,0.67]
[1755647536643,10.39230573,176.92,176.88,0.06]
[1755647536958,10.39230573,176.89,176.88,0.06]
[1755647537141,53.3944673,176.89,176.88,0.06]
[1755647537340,66.99006131,176.89,176.88,0.06]
[1755647537765,66.99006131,176.89,176.88,0.73]
[1755647539179,42.86,176.89,176.88,0.73]
[1755647539663,53.25230573,176.89,176.88,0.73]
[1755647539863,53.23230573,176.89,176.88,0.73]
[1755647540069,42.84,176.89,176.88,0.73]
[1755647540270,42.84,176.89,176.88,0.06]
[1755647540271,56.57775558,176.89,176.88,0.06]
[1755647540443,66.97006131,176.89,176.88,0.06]
[1755647540652,68.84,176.89,176.88,0.73]
[1755647541050,42.84,176.89,176.88,0.73]
[1755647542378,53.23230573,176.89,176.88,0.06]
[1755647543258,53.23230573,176.89,176.88,0.73]
[1755647543562,42.84,176.89,176.88,0.73]
[1755647544750,68.98216157,176.89,176.88,0.06]
[1755647544956,92.97006131,176.89,176.88,0.06]
[1755647545452,36.39230573,176.89,176.88,0.73]
[1755647545650,68.82,176.89,176.88,0.73]
[1755647545849,79.21230573,176.89,176.88,0.73]
[1755647546578,42.82,176.89,176.88,0.73]
[1755647547659,42.82,176.89,176.88,11.12230573]
[1755647547873,0.03,176.92,176.88,11.12230573]
[1755647548175,42.8,176.91,176.89,0.67]
[1755647548593,42.8,176.91,176.9,10.39230573]
[1755647548897,42.8,176.91,176.9,0.67]
[1755647549256,42.8,176.91,176.88,0.06]
[1755647549257,53.19230573,176.91,176.88,0.06]
[1755647549579,10.39230573,176.9,176.88,0.06]
[1755647549779,53.17230573,176.89,176.88,0.06]
[1755647549981,42.78,176.89,176.88,0.06]
[1755647550372,42.78,176.89,176.88,0.73]
[1755647551469,53.17230573,176.89,176.88,0.06]
[1755647551685,42.78,176.89,176.88,0.06]
[1755647551980,53.17230573,176.89,176.88,0.06]
[1755647553169,42.92216157,176.89,176.88,0.06]
[1755647553372,53.3144673,176.89,176.88,0.06]
[1755647553773,53.17230573,176.89,176.88,0.73]
[1755647553986,42.78,176.89,176.88,0.06]
[1755647554193,42.92216157,176.89,176.88,0.06]
[1755647554484,53.3144673,176.89,176.88,0.06]
[1755647554789,42.92216157,176.89,176.88,0.06]
[1755647555790,0.03,176.92,176.88,11.15230573]
[1755647556091,42.74,176.91,176.89,0.7]
[1755647556291,42.74,176.91,176.9,10.39230573]
[1755647556586,42.74,176.91,176.9,11.09230573]
[1755647556976,42.74,176.91,176.9,0.7]
[1755647557166,42.74,176.91,176.9,11.09230573]
[1755647558074,0.03,176.92,176.9,11.09230573]
[1755647558277,42.77,176.92,176.91,11.09230573]
[1755647558572,0.03,176.92,176.91,11.09230573]
[1755647558771,42.77,176.92,176.91,11.09230573]
[1755647559495,42.77,176.92,176.91,0.7]
[1755647559667,42.77,176.92,176.91,11.09230573]
[1755647563078,42.77,176.92,176.91,0.7]
[1755647563397,42.77,176.92,176.88,0.06]
[1755647563597,42.77,176.92,176.91,0.7]
[1755647563898,42.77,176.92,176.88,0.06]
[1755647564081,42.77,176.92,176.89,10.39230573]
[1755647564279,43.43,176.92,176.88,0.06]
[1755647564478,11.05230573,176.91,176.88,0.06]
[1755647565994,10.39230573,176.9,176.88,0.06]
[1755647566186,42.68,176.89,176.88,0.06]
[1755647567404,42.95216157,176.89,176.88,0.06]
[1755647567702,53.3444673,176.89,176.88,0.06]
[1755647568494,66.94006131,176.89,176.88,0.06]
[1755647570282,62.2009864,176.89,176.88,0.06]
[1755647570480,76.30374357,176.89,176.88,0.06]
[1755647570792,26.0,176.87,176.86,0.06]
[1755647570994,86.10820702,176.87,176.86,0.06]
[1755647571188,96.63051275,176.87,176.86,0.06]
[1755647571413,86.23820702,176.87,176.86,0.06]
[1755647571583,96.63051275,176.87,176.86,0.06]
[1755647572505,92.92006131,176.87,176.86,0.06]
[1755647572807,98.57393138,176.87,176.86,0.06]
[1755647573022,92.92006131,176.87,176.86,0.06]
[1755647573380,98.57393138,176.87,176.86,0.06]
[1755647573890,102.27900953,176.87,176.86,0.06]
[1755647574187,98.89380646,176.87,176.86,0.06]
[1755647574392,98.89309711,176.87,176.86,0.06]
[1755647574589,104.54696718,176.87,176.86,0.06]
[1755647574808,13.73775558,176.86,176.85,0.06]
[1755647574982,24.38006131,176.86,176.85,0.06]
[1755647576108,28.08347141,176.86,176.84,0.06]
[1755647576282,10.39230573,176.76,176.75,0.7]
[1755647576481,53.05230573,176.76,176.75,0.7]
[1755647576920,53.05230573,176.76,176.72,0.7]
[1755647577089,10.39230573,176.75,176.73,0.7]
[1755647577291,42.66,176.74,176.71,0.7]
[1755647577491,42.66,176.73,176.72,0.7]
[1755647578378,53.05230573,176.73,176.59,13.59559401]
[1755647578578,0.14216157,176.72,176.68,0.7]
[1755647578793,42.66,176.71,176.68,0.7]
[1755647579382,10.5344673,176.72,176.68,0.7]
[1755647579581,10.5344673,176.72,176.68,0.9]
[1755647579582,42.66,176.71,176.68,0.9]
[1755647579786,42.66,176.71,176.68,0.2]
[1755647580125,42.66,176.71,176.69,0.7]
[1755647580321,42.66,176.71,176.7,0.7]
[1755647581119,42.66,176.71,176.68,0.9]
[1755647581289,53.05230573,176.71,176.68,0.9]
[1755647581486,42.66,176.71,176.68,0.9]
[1755647581698,42.66,176.71,176.68,0.2]
[1755647581898,42.66,176.71,176.69,0.7]
[1755647582290,10.39230573,176.7,176.68,0.2]
[1755647582501,42.66,176.69,176.68,0.9]
[1755647582888,10.39230573,176.7,176.68,0.2]
[1755647583109,42.66,176.69,176.68,0.2]
[1755647583294,53.05230573,176.69,176.68,0.2]
[1755647583488,10.0,176.67,176.57,13.59559401]
[1755647583689,52.66,176.66,176.64,10.39230573]
[1755647584091,52.66,176.66,176.55,0.14216157]
[1755647584092,10.0,176.66,176.65,10.39230573]
[1755647584290,10.0,176.67,176.65,10.45230573]
[1755647584513,26.0,176.75,176.66,10.39230573]
[1755647584514,10.0,176.7,176.66,10.39230573]
[1755647584687,10.0,176.71,176.69,10.39230573]
[1755647585112,10.0,176.71,176.65,0.06]
[1755647585291,10.0,176.67,176.66,10.39230573]
[1755647585491,10.0,176.67,176.66,11.08230573]
[1755647585492,52.66,176.67,176.66,11.08230573]
[1755647585703,10.0,176.72,176.66,21.47461146]
[1755647585906,10.0,176.73,176.71,10.39230573]
[1755647586109,10.0,176.7,176.69,0.69]
[1755647586285,10.0,176.7,176.65,0.06]
[1755647586494,10.0,176.66,176.65,0.06]
[1755647586720,89.2144673,176.66,176.65,0.06]
[1755647587036,100.3167733,176.66,176.65,0.06]
[1755647587689,103.52006158,176.66,176.65,0.06]
[1755647587908,87.91236731,176.66,176.65,0.06]
[1755647588602,93.57295827,176.66,176.65,0.06]
[1755647590401,99.25491726,176.66,176.65,0.06]
[1755647591215,10.0,176.54,176.53,16.76426472]
[1755647591408,52.68,176.54,176.53,16.76426472]
[1755647591611,10.0,176.52,176.4,45.74412373]
[1755647591828,52.68,176.52,176.51,16.07426472]
[1755647592117,52.68,176.52,176.41,13.59559401]
[1755647592321,52.68,176.52,176.51,16.76426472]
[1755647592520,52.68,176.52,176.51,0.69]
[1755647592726,52.68,176.52,176.51,16.76426472]
[1755647593020,52.68,176.52,176.51,0.69]
[1755647593523,42.68,176.54,176.51,16.76426472]
[1755647593826,52.68,176.54,176.44,39.59559401]
[1755647594115,10.0,176.52,176.44,39.59559401]
[1755647594325,52.68,176.54,176.49,0.06]
[1755647594508,52.68,176.54,176.5,0.69]
[1755647594710,10.0,176.53,176.5,0.69]
[1755647595103,10.0,176.53,176.52,16.07426472]
[1755647595303,10.0,176.55,176.52,16.76426472]
[1755647595521,52.7,176.55,176.54,16.07426472]
[1755647595729,10.0,176.54,176.52,0.69]
[1755647596022,10.0,176.54,176.53,16.76426472]
[1755647596224,10.0,176.54,176.53,0.69]
[1755647596403,10.0,176.54,176.53,16.76426472]
[1755647596928,52.7,176.54,176.53,16.76426472]
[1755647597905,10.0,176.52,176.51,0.69]
[1755647598095,10.0,176.52,176.51,16.07426472]
[1755647598296,10.0,176.52,176.51,16.76426472]
[1755647599113,10.0,176.55,176.51,16.76426472]
[1755647599343,10.0,176.55,176.54,16.07426472]
[1755647599537,10.0,176.55,176.54,0.69]
[1755647599828,10.0,176.55,176.54,16.76426472]
[1755647600217,10.0,176.55,176.54,0.69]
[1755647601016,10.0,176.55,176.54,16.76426472]
[1755647602034,10.0,176.55,176.54,16.07426472]
[1755647602410,10.0,176.52,176.49,0.75]
[1755647602605,52.7,176.52,176.51,16.07426472]
[1755647602806,52.7,176.52,176.51,16.76426472]
[1755647603008,10.0,176.52,176.51,16.76426472]
[1755647603213,10.0,176.53,176.51,16.76426472]
[1755647603418,10.0,176.52,176.49,0.06]
[1755647603609,10.0,176.52,176.5,0.69]
[1755647603932,10.0,176.52,176.49,0.06]
[1755647604308,10.0,176.52,176.5,0.69]
[1755647604508,10.0,176.51,176.5,0.69]
[1755647604735,10.0,176.51,176.49,0.06]
[1755647604955,52.7,176.51,176.5,16.07426472]
[1755647605811,52.7,176.51,176.5,16.76426472]
[1755647606337,52.7,176.51,176.5,0.69]
[1755647606525,52.7,176.51,176.5,16.76426472]
[1755647607714,42.7,176.52,176.5,16.76426472]
[1755647608027,10.0,176.54,176.51,16.76426472]
[1755647608219,10.0,176.53,176.52,16.07426472]
[1755647608734,10.0,176.53,176.49,0.75]
[1755647608925,10.0,176.53,176.51,16.07426472]
[1755647609257,10.0,176.53,176.49,0.06]
[1755647609258,10.0,176.56,176.52,16.76426472]
[1755647609426,10.0,176.56,176.53,0.69]
[1755647609614,10.0,176.56,176.55,16.07426472]
[1755647609815,52.7,176.57,176.55,16.07426472]
[1755647610037,52.7,176.57,176.56,16.07426472]
[1755647610247,10.0,176.62,176.56,16.76426472]
[1755647610420,10.0,176.62,176.61,10.439826]
[1755647610619,10.0,176.62,176.58,10.439826]
[1755647610839,10.0,176.58,176.49,0.06]
[1755647611027,42.7,176.57,176.53,0.69]
[1755647611857,10.0,176.56,176.53,0.69]
[1755647612144,10.0,176.56,176.54,10.439826]
[1755647612346,0.71,176.55,176.49,0.06]
[1755647612638,42.7,176.54,176.51,16.07412305]
[1755647612841,52.7,176.54,176.49,0.75]
[1755647613025,53.41,176.54,176.51,16.07412305]
[1755647613430,0.71,176.53,176.5,16.07412305]
[1755647613845,10.0,176.52,176.5,16.07412305]
[1755647614033,42.7,176.51,176.5,16.07412305]
[1755647614941,52.7,176.51,176.49,16.13412305]
[1755647615132,52.7,176.51,176.5,16.07412305]
[1755647615531,52.7,176.51,176.49,16.13412305]
[1755647617921,52.7,176.51,176.49,0.06]
[1755647617922,0.68,176.5,176.49,0.06]
[1755647618249,0.14216157,176.54,176.49,16.81412305]
[1755647618435,10.0,176.56,176.53,16.07412305]
[1755647618638,52.7,176.56,176.52,0.68]
[1755647618840,10.0,176.55,176.5,0.68]
[1755647619023,10.0,176.54,176.5,0.68]
[1755647619369,52.7,176.53,176.51,16.07412305]
[1755647619544,10.0,176.56,176.52,16.75412305]
[1755647619750,10.0,176.57,176.55,16.07412305]
[1755647619934,10.0,176.57,176.49,0.06]
[1755647619935,10.0,176.57,176.56,16.07412305]
[1755647620144,52.7,176.57,176.55,16.75412305]
[1755647620621,10.0,176.56,176.55,16.75412305]
[1755647620822,10.0,176.52,176.49,0.06]
[1755647621023,42.7,176.51,176.49,0.06]
[1755647621237,42.7,176.51,176.5,16.07412305]
[1755647621437,10.68,176.57,176.5,16.75412305]
[1755647621627,10.0,176.55,176.54,16.07412305]
[1755647622327,10.0,176.55,176.53,16.07412305]
[1755647622539,10.0,176.54,176.51,0.68]
[1755647622741,42.7,176.53,176.51,16.07412305]
[1755647622952,42.7,176.53,176.52,16.07412305]
[1755647624459,42.7,176.53,176.52,16.75412305]
[1755647624660,42.7,176.55,176.52,16.75412305]
[1755647624963,10.0,176.54,176.53,16.75412305]
[1755647625162,10.0,176.54,176.53,16.07412305]
[1755647625378,10.0,176.54,176.52,16.07412305]
[1755647626043,10.0,176.54,176.49,0.06]
[1755647626240,10.68,176.54,176.5,16.07412305]
[1755647626753,10.0,176.54,176.51,16.07412305]
[1755647626951,10.68,176.54,176.49,0.06]
[1755647627153,42.68,176.53,176.5,16.07412305]
[1755647627847,52.68,176.53,176.49,0.74]
[1755647628054,10.68,176.52,176.49,0.06]
[1755647628555,10.0,176.5,176.49,0.06]
[1755647628762,52.68,176.5,176.49,0.06]
[1755647629066,53.36,176.5,176.49,0.06]
[1755647630047,52.68,176.5,176.49,0.06]
[1755647630254,42.68,176.5,176.49,16.81412305]
[1755647630463,42.68,176.51,176.49,16.81412305]
[1755647630669,10.0,176.54,176.5,16.75412305]
[1755647630873,13.69848603,176.57,176.53,16.07412305]
[1755647631079,10.68,176.6,176.56,16.07412305]
[1755647631376,42.68,176.59,176.58,16.07412305]
[1755647631548,42.68,176.59,176.57,16.75412305]
[1755647631875,42.68,176.59,176.55,0.68]
[1755647632087,42.68,176.59,176.49,13.65559401]
[1755647632252,42.68,176.59,176.57,16.07412305]
[1755647633068,10.0,176.57,176.52,0.68]
[1755647633375,10.0,176.64,176.56,16.07412305]
[1755647633544,10.0,176.61,176.57,0.68]
[1755647634038,10.68,176.61,176.55,0.68]
[1755647634243,42.68,176.6,176.55,0.68]
[1755647634471,42.68,176.6,176.56,0.68]
[1755647634674,43.36,176.6,176.57,16.07412305]
[1755647635192,43.36,176.6,176.51,26.0]
[1755647635193,26.75412305,176.59,176.51,0.68]
[1755647635340,10.0,176.56,176.52,16.07412305]
[1755647635658,52.68,176.56,176.52,16.07412305]
[1755647635862,42.68,176.56,176.53,16.07412305]
[1755647636063,52.68,176.56,176.53,16.07412305]
[1755647637978,42.68,176.56,176.54,16.75412305]
[1755647638178,42.68,176.56,176.49,13.65559401]
[1755647638179,42.68,176.56,176.55,16.75412305]
[1755647638383,52.66,176.58,176.55,0.68]
[1755647638578,52.66,176.58,176.56,16.07412305]
[1755647638781,52.66,176.58,176.55,0.68]
[1755647639077,52.66,176.58,176.55,16.75412305]
[1755647639872,52.66,176.58,176.56,16.07412305]
[1755647640261,0.68,176.57,176.55,16.07412305]
[1755647640487,0.68,176.56,176.51,0.68]
[1755647640684,53.34,176.55,176.52,16.07412305]
[1755647640985,53.34,176.55,176.49,0.74]
[1755647640986,0.68,176.54,176.49,0.74]
[1755647641198,10.0,176.51,176.49,0.06]
[1755647641367,52.66,176.51,176.49,0.06]
[1755647641566,53.34,176.51,176.49,0.06]
[1755647641795,52.66,176.51,176.49,16.13412305]
[1755647642005,52.66,176.51,176.5,16.07412305]
[1755647642179,52.66,176.51,176.49,16.13412305]
[1755647642683,42.66,176.51,176.5,16.75412305]
[1755647642878,52.66,176.51,176.5,16.75412305]
[1755647643085,42.66,176.51,176.49,0.06]
[1755647643263,52.66,176.51,176.49,0.06]
[1755647643464,52.66,176.51,176.49,16.13412305]
[1755647644103,42.66,176.51,176.5,16.75412305]
[1755647644299,0.7,176.53,176.49,0.06]
[1755647644495,0.7,176.55,176.52,16.07412305]
[1755647644671,42.66,176.55,176.54,16.07412305]
[1755647644881,10.0,176.54,176.51,16.07412305]
[1755647645075,10.0,176.51,176.49,0.06]
[1755647645791,10.7,176.51,176.49,0.06]
[1755647646168,10.0,176.51,176.49,16.13412305]
[1755647646395,52.66,176.52,176.49,0.74]
[1755647646573,42.66,176.52,176.51,16.07412305]
[1755647646978,52.66,176.52,176.49,16.13412305]
[1755647647196,53.36,176.52,176.49,16.13412305]
[1755647647494,52.66,176.52,176.49,16.13412305]
[1755647647673,42.66,176.52,176.5,16.07412305]
[1755647647996,42.66,176.52,176.49,16.13412305]
[1755647648380,42.66,176.52,176.51,16.07412305]
[1755647648772,10.0,176.57,176.51,16.75412305]
[1755647648984,42.66,176.56,176.54,16.07412305]
[1755647649275,0.7,176.55,176.5,0.68]
[1755647649469,42.66,176.56,176.52,16.07412305]
[1755647649470,10.0,176.54,176.52,16.07412305]